bitfinex/quotes_ETHUSD_20220215
["timestamp","ask_amount","ask_price","bid_price","bid_amount"]
[1644945567465,0.388,3095.2,3095.0,0.00494155]
[1644945567659,0.25,3095.8,3095.0,0.00494155]
[1644945567660,0.25,3095.8,3095.0,0.17179394]
[1644945567861,0.388,3096.0,3095.1,0.00394155]
[1644945568060,1.17850401,3095.9,3095.1,0.00394155]
[1644945568459,0.80776,3095.6,3095.1,0.00394155]
[1644945568969,0.80776,3095.6,3095.0,0.001]
[1644945568970,23.58699873,3095.5,3095.0,0.00392205]
[1644945569160,23.58699873,3095.5,3093.5,0.60217851]
[1644945569161,18.91,3095.3,3093.5,2.6732]
[1644945569359,0.80792,3095.0,3093.6,1.16991388]
[1644945569558,5.06499873,3095.2,3093.7,0.15315077]
[1644945569559,0.388,3094.9,3093.7,0.15315077]
[1644945569806,0.388,3094.8,3093.7,1.30426922]
[1644945570007,5.64820495,3095.2,3093.8,0.37585488]
[1644945570008,0.388,3094.7,3093.8,0.37585488]
[1644945570206,0.388,3094.6,3093.9,0.15315077]
[1644945570405,0.80818,3094.1,3093.1,1.2073]
[1644945570605,0.388,3094.2,3093.2,0.16658675]
[1644945570804,0.388,3094.2,3093.3,0.16658675]
[1644945570805,4.188,3094.1,3093.3,0.16658675]
[1644945571004,0.688,3094.1,3092.2,0.20344804]
[1644945571206,0.688,3094.1,3092.3,1.04267087]
[1644945571207,4.36676808,3093.7,3092.3,1.04267087]
[1644945571405,1.688,3093.6,3092.4,0.16696267]
[1644945571611,0.8084,3093.3,3092.4,0.16696267]
[1644945571805,1.25,3094.1,3092.4,0.16696267]
[1644945571806,0.388,3093.2,3092.4,0.16696267]
[1644945572005,5.30833,3094.0,3092.4,0.16696267]
[1644945572006,0.388,3093.1,3092.4,0.16696267]
[1644945572205,0.388,3093.3,3092.4,0.16696267]
[1644945572609,0.388,3093.3,3093.1,0.9077403]
[1644945572806,0.388,3093.3,3093.2,0.16696267]
[1644945573209,0.388,3093.3,3092.6,0.00265682]
[1644945573210,0.1669,3093.2,3092.6,0.00265682]
[1644945573454,0.388,3093.1,3092.6,0.00265682]
[1644945573653,0.388,3093.1,3091.9,0.20234893]
[1644945573855,3.52199074,3093.0,3092.1,0.80832]
[1644945574055,3.52199074,3093.0,3092.7,0.00265674]
[1644945574255,0.388,3093.1,3092.7,0.00265674]
[1644945574454,3.44357555,3093.0,3092.7,0.00265674]
[1644945574654,0.388,3093.1,3092.7,0.00265674]
[1644945574854,0.388,3093.1,3092.2,0.001]
[1644945575260,3.80589912,3093.0,3091.6,0.81864315]
[1644945575456,3.80589912,3093.0,3091.3,5.09868268]
[1644945575457,0.0124305,3092.7,3091.3,0.0068669]
[1644945575658,0.388,3092.6,3091.0,0.01]
[1644945575857,0.388,3092.6,3091.1,0.0137338]
[1644945576256,0.388,3092.6,3091.2,2.42557]
[1644945576257,3.5,3092.5,3091.2,2.42557]
[1644945576457,3.5,3092.5,3091.1,0.0137338]
[1644945576458,0.388,3092.4,3091.1,0.0137338]
[1644945576657,0.40035102,3092.4,3091.1,0.0137338]
[1644945576958,0.388,3092.4,3092.0,0.92527388]
[1644945577207,4.2832,3093.2,3092.0,1.93638144]
[1644945577208,1.609,3093.2,3092.0,1.93638144]
[1644945577508,0.01295257,3092.2,3092.0,0.00258122]
[1644945577708,0.388,3092.1,3092.0,0.00258122]
[1644945578611,0.388,3092.1,3091.7,7.9185]
[1644945578806,22.42200186,3092.9,3091.7,7.9185]
[1644945578807,0.00089982,3092.7,3091.7,7.9185]
[1644945579005,0.00089982,3092.7,3091.8,0.17475347]
[1644945579606,0.00089982,3092.7,3092.3,1.1531185]
[1644945579807,19.298,3093.1,3092.3,1.1031185]
[1644945580007,19.298,3093.1,3091.7,7.9185]
[1644945580008,0.00089982,3092.9,3091.7,7.9185]
[1644945580511,0.00089982,3092.9,3091.8,0.001]
[1644945580708,0.00089982,3092.9,3091.8,0.24013847]
[1644945580970,0.388,3093.1,3091.8,0.24013847]
[1644945581161,0.0029994,3093.0,3091.8,0.24013847]
[1644945582056,0.80853,3093.0,3092.3,0.91555123]
[1644945582256,0.80853,3093.0,3091.9,0.23778648]
[1644945582456,0.00289788,3092.6,3091.8,0.19361124]
[1644945583060,0.21448765,3093.3,3091.8,3.81142169]
[1644945583260,0.21448765,3093.3,3091.9,0.19000909]
[1644945583658,0.21448765,3093.3,3091.7,7.9185]
[1644945583659,0.21448765,3093.3,3091.8,0.20945299]
[1644945583857,0.21448765,3093.3,3092.9,0.84867542]
[1644945584058,1.0,3093.4,3091.9,0.001]
[1644945584262,1.0,3093.4,3091.8,0.20945299]
[1644945584263,3.99016743,3093.3,3091.8,0.20945299]
[1644945584460,1.0,3093.2,3091.8,0.20945299]
[1644945584899,1.0,3093.2,3092.1,1.02380646]
[1644945585098,3.69554816,3093.1,3092.2,0.001]
[1644945585304,1.0,3093.0,3092.2,0.00490598]
[1644945585499,3.42265937,3093.2,3092.2,0.00490598]
[1644945585702,3.39169545,3093.4,3092.2,0.22363903]
[1644945585899,0.0028974,3093.2,3092.3,0.00390598]
[1644945586103,0.0028974,3093.2,3092.6,1.18993486]
[1644945586305,0.0028974,3093.2,3092.7,0.00490598]
[1644945586899,0.13819996,3093.8,3092.7,0.00490598]
[1644945587300,0.00289755,3093.2,3093.1,1.17897275]
[1644945587502,0.00289755,3093.2,3093.1,1.17997275]
[1644945588102,0.13819996,3093.8,3093.1,1.17997275]
[1644945588304,0.13819996,3093.8,3093.2,0.001]
[1644945588305,0.00289749,3093.3,3093.2,0.001]
[1644945588552,0.00289749,3093.3,3093.2,0.00490598]
[1644945588751,0.00289749,3093.3,3092.7,0.00390598]
[1644945588953,0.00289749,3093.3,3092.5,0.00390598]
[1644945589154,0.00289749,3093.3,3092.6,0.17295593]
[1644945589354,0.25,3094.2,3092.7,0.00390598]
[1644945589556,0.25,3094.2,3093.0,0.17607544]
[1644945589753,0.00289753,3093.2,3093.1,0.00390598]
[1644945589954,0.00289753,3093.2,3093.1,0.90237264]
[1644945590154,0.00289753,3093.2,3093.1,0.90337264]
[1644945590457,0.00289753,3093.2,3093.1,0.89846666]
[1644945590655,0.25,3094.2,3093.1,1.19946666]
[1644945590858,1.2267,3095.1,3093.1,1.19946666]
[1644945590859,0.00289749,3093.3,3093.2,0.00490598]
[1644945591656,0.25,3094.4,3093.2,0.00490598]
[1644945591856,3.5,3094.8,3093.2,0.00490598]
[1644945592054,0.01158779,3093.9,3093.8,1.0908468]
[1644945592320,0.37645536,3093.4,3093.3,0.84623773]
[1644945592718,0.37645536,3093.4,3093.3,0.85012255]
[1644945593418,0.00289739,3093.5,3093.3,0.85012255]
[1644945593815,0.00289739,3093.5,3093.4,0.3]
[1644945594015,0.01158781,3094.0,3093.4,0.3]
[1644945594217,3.5,3095.1,3093.5,0.81173482]
[1644945594419,1.7892,3095.3,3093.6,0.00388482]
[1644945594718,0.0115876,3094.1,3093.6,0.00388482]
[1644945595322,3.5,3095.1,3093.9,0.80766]
[1644945595519,3.629392,3095.6,3095.1,1.08396369]
[1644945595820,0.129392,3095.6,3095.1,1.08396369]
[1644945597359,0.129392,3095.6,3095.2,0.001]
[1644945597964,0.13228833,3095.6,3094.7,0.001]
[1644945598156,0.13228833,3095.6,3094.3,0.001]
[1644945598157,0.94005513,3095.6,3094.3,0.001]
[1644945598356,0.13228833,3095.6,3094.3,0.001]
[1644945598565,0.13228833,3095.6,3094.2,0.001]
[1644945598759,0.13228833,3095.6,3094.2,0.301]
[1644945599058,0.129392,3095.6,3095.4,1.1011031]
[1644945599273,0.129392,3095.6,3095.5,0.001]
[1644945601902,0.00289625,3095.7,3095.5,0.001]
[1644945602503,0.25,3096.6,3095.5,0.001]
[1644945602704,6.3152,3097.6,3095.5,0.001]
[1644945602705,1.32902715,3096.5,3095.5,0.001]
[1644945602903,4.09866511,3097.3,3095.5,8.0261]
[1644945603104,1.32901305,3097.2,3095.6,0.001]
[1644945603305,3.5,3097.1,3096.6,1.14851326]
[1644945603560,3.5,3097.1,3095.6,0.001]
[1644945603561,1.32901305,3097.0,3096.7,8.1152]
[1644945603764,1.32901305,3096.9,3096.7,5.91409718]
[1644945603964,1.32901305,3096.8,3096.7,5.91409718]
[1644945605264,1.32901305,3096.8,3096.7,6.8970387]
[1644945605863,1.2896136,3096.8,3096.7,6.8970387]
[1644945606063,1.28961894,3096.8,3096.7,6.8970387]
[1644945606266,1.28961894,3097.4,3096.7,6.8970387]
[1644945606463,0.00289239,3096.9,3096.7,6.8970387]
[1644945607303,4.72071269,3097.3,3096.7,5.66409718]
[1644945607504,0.8073601,3096.9,3096.7,5.66409718]
[1644945607705,5.1542783,3096.8,3096.7,5.66409718]
[1644945607905,4.86675709,3096.8,3096.7,5.66409718]
[1644945608204,1.28961894,3096.8,3096.7,5.66409718]
[1644945608604,1.28400227,3096.8,3096.7,5.66409718]
[1644945609004,0.00289239,3096.9,3096.7,5.66509718]
[1644945609208,0.00289239,3096.9,3096.8,0.001]
[1644945609704,1.28415414,3097.3,3096.8,0.001]
[1644945609705,2.09150414,3097.3,3096.8,0.001]
[1644945609904,1.28415414,3097.3,3096.8,0.001]
[1644945610106,0.00289234,3097.0,3096.8,0.001]
[1644945610305,1.28704648,3097.0,3096.8,0.001]
[1644945610947,1.28415414,3097.0,3096.8,0.001]
[1644945611151,2.09153414,3097.0,3096.8,0.001]
[1644945611359,5.15519677,3096.9,3096.8,0.001]
[1644945611548,1.67215414,3096.9,3096.8,0.001]
[1644945612152,1.67215414,3096.9,3096.7,4.6357566]
[1644945612352,0.6809,3096.7,3095.8,0.17812236]
[1644945612553,0.6809,3096.7,3095.3,0.23339509]
[1644945612554,1.6150369,3096.4,3095.3,0.23339509]
[1644945612952,5.1425669,3096.4,3095.3,0.23339509]
[1644945613253,5.1425669,3096.4,3095.4,1.13374562]
[1644945613455,1.25561413,3096.3,3095.4,1.13374562]
[1644945613652,0.00289286,3096.0,3095.4,1.13374562]
[1644945614707,1.6152175,3096.2,3095.4,1.13374562]
[1644945614897,0.00289293,3095.9,3095.4,1.36055611]
[1644945615097,0.00289293,3095.9,3095.4,1.13374562]
[1644945615700,0.8075311,3096.1,3095.4,1.13374562]
[1644945615898,0.465,3096.3,3095.4,1.13374562]
[1644945616104,0.465,3096.3,3095.5,0.19859342]
[1644945616105,0.00289296,3095.8,3095.5,0.19859342]
[1644945616300,0.00289296,3095.8,3095.4,1.3578826]
[1644945616799,0.00289296,3095.8,3095.4,1.13374562]
[1644945617002,1.6151763,3096.2,3095.4,1.13374562]
[1644945617203,0.00289298,3095.8,3095.4,1.13374562]
[1644945617403,0.00289298,3095.8,3095.5,0.001]
[1644945617603,0.465,3095.7,3095.2,0.001]
[1644945618203,1.2726702,3095.7,3095.2,0.001]
[1644945618454,0.00289306,3095.6,3095.5,0.90614323]
[1644945619354,1.27257,3096.2,3095.5,0.90614323]
[1644945619554,0.00289301,3095.7,3095.5,0.90614323]
[1644945620554,0.8075434,3096.0,3095.5,0.90614323]
[1644945620955,0.00289298,3095.8,3095.5,0.90614323]
[1644945621757,0.8075434,3096.0,3095.5,0.90614323]
[1644945623914,1.6151234,3096.0,3095.5,0.90614323]
[1644945624319,1.2573106,3095.9,3095.5,0.90614323]
[1644945624513,1.2573106,3095.9,3095.1,6.3376]
[1644945624514,7.107556,3095.8,3095.3,0.90956326]
[1644945624714,0.807556,3095.8,3095.3,0.90956326]
[1644945625114,0.80755,3096.1,3095.3,0.90956326]
[1644945625314,6.3803524,3096.2,3095.3,0.90956326]
[1644945625513,1.25788609,3096.1,3095.3,1.10378044]
[1644945625715,0.81051979,3095.7,3095.3,1.10378044]
[1644945626559,0.81051979,3095.7,3094.2,1.2146]
[1644945626560,0.80763,3095.7,3094.2,1.2146]
[1644945626761,2.5305231,3095.6,3094.3,0.20835076]
[1644945626966,1.25773952,3095.5,3093.9,3.00645967]
[1644945627162,2.4234297,3095.2,3093.9,3.00645967]
[1644945627361,0.80781,3095.0,3093.8,0.81169482]
[1644945627562,0.80781,3095.0,3094.6,0.86877274]
[1644945628062,0.81936979,3095.0,3094.6,0.86877274]
[1644945628261,1.62717249,3095.0,3094.6,0.86877274]
[1644945629065,1.62717249,3095.0,3093.8,0.23055675]
[1644945629066,1.6160982,3094.7,3093.8,0.23055675]
[1644945629267,0.80806,3094.5,3093.3,0.00388482]
[1644945629464,0.80806,3094.5,3093.0,0.22578909]
[1644945629465,0.80811,3094.4,3093.0,0.22578909]
[1644945629711,0.80811,3094.4,3093.1,0.08616377]
[1644945629712,0.465,3094.4,3093.1,0.08616377]
[1644945629910,0.465,3094.4,3093.8,1.04396713]
[1644945630211,0.465,3094.4,3093.9,0.001]
[1644945630611,0.47656113,3094.4,3093.9,0.001]
[1644945630811,1.28448653,3094.4,3093.9,0.001]
[1644945631411,0.465,3094.4,3094.3,1.18458008]
[1644945631612,0.465,3094.4,3093.9,0.001]
[1644945631613,6.75,3094.3,3093.3,0.00388482]
[1644945631813,6.75,3094.3,3093.1,0.23399671]
[1644945631814,0.8080972,3094.1,3093.1,0.23399671]
[1644945632016,3.46035071,3094.0,3093.2,0.08340396]
[1644945632212,0.4662889,3094.3,3093.2,0.00388482]
[1644945632213,3.97702492,3094.2,3093.2,0.00388482]
[1644945632414,3.43323334,3094.3,3093.2,0.00388482]
[1644945632611,1.25683852,3094.2,3093.7,1.06173281]
[1644945632814,0.40659603,3093.5,3093.2,0.00388482]
[1644945633017,0.40659603,3093.5,3093.3,1.05744856]
[1644945633212,0.40659603,3093.5,3093.3,1.06133338]
[1644945633853,0.40659603,3093.5,3093.3,0.00388482]
[1644945634055,0.465,3093.4,3092.6,0.00288817]
[1644945634253,0.8084329,3093.2,3092.6,0.10605509]
[1644945634454,0.8084329,3093.2,3092.6,0.00288817]
[1644945634655,0.8084329,3093.2,3092.7,0.00388482]
[1644945634854,0.8084329,3093.2,3092.6,0.00288817]
[1644945635053,0.8084329,3093.2,3092.7,0.00388482]
[1644945635254,0.8084329,3093.2,3092.8,1.19279303]
[1644945635454,0.8084329,3093.2,3092.9,0.00388482]
[1644945635654,0.8084329,3093.2,3092.6,0.00288798]
[1644945635855,0.80837,3093.1,3092.6,0.00288798]
[1644945636258,0.80837,3093.1,3092.5,0.007]
[1644945636259,0.465,3093.0,3092.5,0.007]
[1644945636457,1.61711,3092.9,3092.6,0.00288794]
[1644945636657,0.465,3092.8,3092.6,0.00288794]
[1644945636858,0.465,3092.8,3092.6,0.00677276]
[1644945637309,1.465,3092.8,3092.5,0.007]
[1644945637707,2.27354,3092.8,3092.5,8.79e-05]
[1644945637908,0.8087,3092.7,3092.5,8.79e-05]
[1644945638107,0.465,3092.6,3092.5,8.79e-05]
[1644945638307,5.8156527,3092.6,3092.5,8.79e-05]
[1644945638506,5.83070292,3092.6,3092.5,8.79e-05]
[1644945638707,5.83070292,3092.6,3091.2,0.10336999]
[1644945638708,3.0822611,3092.6,3092.0,1.00217657]
[1644945638907,0.80858,3092.5,3092.1,0.00488482]
[1644945639106,1.80858,3092.5,3091.3,0.00388482]
[1644945639407,1.80858,3092.5,3090.9,0.17969784]
[1644945639408,4.4735935,3092.4,3091.4,0.10334573]
[1644945639607,0.8086122,3092.0,3091.5,0.10723055]
[1644945639810,0.8086122,3092.0,3091.6,0.10336384]
[1644945640006,0.8086122,3092.0,3091.7,0.00388482]
[1644945640206,0.8086122,3092.0,3091.5,0.93382447]
[1644945640406,0.8086122,3092.0,3091.6,0.00388482]
[1644945640615,5.8910326,3092.0,3091.6,0.00388482]
[1644945640809,0.8088,3091.7,3090.8,0.00388482]
[1644945641060,1.1475,3092.2,3090.9,0.10339478]
[1644945641267,3.965,3092.5,3091.0,0.10339478]
[1644945641457,3.965,3092.5,3091.0,0.1072796]
[1644945641458,0.80858,3092.4,3091.0,0.1072796]
[1644945641656,0.80858,3092.4,3092.0,1.06570216]
[1644945641859,0.80858,3092.4,3092.1,0.00488482]
[1644945642057,1.61718,3092.4,3092.1,0.00488482]
[1644945642560,1.61718,3092.4,3092.1,0.00288813]
[1644945642958,1.10858,3092.4,3092.1,0.00288813]
[1644945643358,0.80858,3092.4,3092.1,0.00288813]
[1644945643557,0.80858,3092.4,3091.9,0.00488482]
[1644945643758,0.465,3092.6,3092.1,0.00288813]
[1644945644158,0.38819996,3092.9,3092.1,0.00288813]
[1644945644559,0.13819996,3092.9,3091.9,0.00488482]
[1644945644802,0.00288724,3093.2,3092.3,0.002888]
[1644945645011,0.00288724,3093.2,3092.4,0.9022406]
[1644945645207,1.61657,3093.8,3092.4,0.9022406]
[1644945645208,0.465,3094.3,3092.7,18.91]
[1644945645401,0.59866511,3094.8,3092.8,4.14013237]
[1644945645402,0.84866511,3094.8,3092.8,4.14013237]
[1644945645602,0.84866511,3094.8,3092.9,0.001]
[1644945645603,1.21624411,3094.7,3092.9,0.001]
[1644945645902,1.21624411,3094.7,3093.2,0.20965014]
[1644945646102,0.25,3094.8,3093.2,0.20965014]
[1644945646103,0.25,3094.8,3093.5,0.80788]
[1644945646301,6.6136,3094.9,3093.6,0.20894905]
[1644945646503,6.6136,3094.9,3093.6,0.001]
[1644945646504,1.21918046,3094.8,3093.6,0.001]
[1644945646705,1.13288773,3093.5,3093.2,0.6461217]
[1644945646901,1.2422,3094.9,3093.2,0.6461217]
[1644945647103,1.21920687,3094.8,3093.1,0.2618817]
[1644945647301,1.21920687,3094.8,3094.5,1.12980837]
[1644945647502,0.76293655,3095.2,3094.5,1.12980837]
[1644945647706,1.2193093,3095.1,3093.6,1.84169927]
[1644945648104,2.0272193,3095.1,3093.6,1.84169927]
[1644945648307,0.01293655,3095.2,3093.8,0.18602356]
[1644945648549,0.465,3095.6,3093.6,1.81792321]
[1644945648550,1.21985734,3095.1,3093.6,1.81792321]
[1644945648750,1.61582,3095.4,3094.6,1.05306291]
[1644945648949,1.61582,3095.4,3093.4,1.61717961]
[1644945648950,1.21987761,3095.3,3093.8,0.21113108]
[1644945649152,1.21987761,3095.3,3093.4,0.80954961]
[1644945649153,1.71987761,3095.3,3093.5,3.8]
[1644945649352,0.8079,3095.1,3093.6,0.21779209]
[1644945649551,0.80802,3094.9,3093.6,0.21779209]
[1644945649756,0.00288918,3094.6,3093.4,0.30289026]
[1644945649951,0.00288918,3094.6,3094.1,1.16116973]
[1644945650755,0.80802,3094.6,3094.1,1.16116973]
[1644945651058,0.00288921,3094.5,3094.1,1.16116973]
[1644945651954,1.22039844,3094.9,3094.1,1.16116973]
[1644945652207,0.00288923,3094.5,3094.2,0.001]
[1644945652811,0.30596349,3094.0,3093.5,0.22380181]
[1644945653011,0.30596349,3094.0,3093.6,0.89613865]
[1644945653910,0.30596349,3094.0,3093.6,1.12449002]
[1644945654511,0.30596349,3094.0,3093.6,0.89613865]
[1644945655113,0.30596349,3094.0,3093.6,1.08569396]
[1644945655312,0.30596349,3094.0,3093.6,0.89613865]
[1644945655516,0.30596349,3094.0,3093.6,1.10018634]
[1644945655954,0.30596349,3094.0,3093.6,0.89613865]
[1644945656754,1.40168955,3095.6,3093.9,24.10581659]
[1644945656956,0.80966043,3096.1,3093.9,24.10581659]
[1644945656957,1.18195439,3095.5,3094.4,0.80764]
[1644945657156,2.58614343,3096.4,3094.6,0.21460745]
[1644945657357,0.60109343,3096.2,3094.6,0.21460745]
[1644945657552,0.60109343,3096.2,3094.5,0.2300596]
[1644945657754,1.182063,3096.1,3095.3,0.53636184]
[1644945657954,1.182063,3096.0,3095.3,0.53636184]
[1644945658156,0.0028921,3095.5,3094.6,0.001]
[1644945658353,0.0028921,3095.5,3094.6,0.17751737]
[1644945658555,0.0028921,3095.5,3094.6,0.80762]
[1644945658754,0.0028921,3095.5,3094.6,0.80862]
[1644945658955,0.0028921,3095.5,3094.7,0.19974153]
[1644945659159,1.182063,3095.9,3094.7,0.20074153]
[1644945659353,0.00289226,3095.2,3095.1,1.14935346]
[1644945659554,0.00289226,3095.2,3095.1,1.15035346]
[1644945660011,0.00289226,3095.2,3095.1,0.001]
[1644945660210,0.00289226,3095.2,3094.7,0.20894741]
[1644945660211,0.00289226,3095.2,3094.7,0.001]
[1644945660411,0.01156729,3095.7,3094.3,0.001]
[1644945660412,0.465,3095.3,3094.3,0.001]
[1644945660611,1.182063,3095.2,3094.2,0.001]
[1644945661009,1.182063,3095.2,3094.4,1.06281617]
[1644945661212,1.182063,3095.2,3094.5,0.001]
[1644945661411,0.465,3095.6,3094.5,0.001]
[1644945661412,1.182063,3095.5,3094.5,0.001]
[1644945661609,1.18244637,3095.4,3094.5,0.001]
[1644945661810,0.00263038,3095.0,3094.5,0.001]
[1644945662611,2.26331318,3095.3,3094.5,0.001]
[1644945662812,2.26331318,3095.3,3094.1,6.61079]
[1644945662813,1.18244637,3095.2,3094.2,0.001]
[1644945663014,0.0026304,3094.9,3094.2,0.001]
[1644945663651,0.0026304,3094.9,3094.3,0.98396164]
[1644945663851,1.18244637,3095.2,3094.3,0.98396164]
[1644945664252,0.00263049,3094.7,3094.3,0.98396164]
[1644945664755,0.00263049,3094.7,3094.3,0.91358068]
[1644945664955,0.00263049,3094.7,3094.3,1.14396738]
[1644945665153,0.465,3095.6,3094.4,0.001]
[1644945665353,0.00265251,3094.7,3094.4,0.001]
[1644945665555,0.00265251,3094.7,3094.4,1.6163934]
[1644945665757,0.00265251,3094.7,3094.5,0.23050597]
[1644945666355,1.43120015,3095.9,3094.5,0.23050597]
[1644945666556,0.00265246,3094.8,3094.5,0.23050597]
[1644945666758,0.00265246,3094.8,3094.6,0.80765]
[1644945666958,0.00265246,3094.8,3094.6,0.80865]
[1644945667199,0.00265246,3094.8,3094.6,1.8499388]
[1644945667401,2.31770135,3095.9,3094.7,0.001]
[1644945667598,1.18416739,3095.8,3095.0,0.44853885]
[1644945667804,0.01060808,3095.3,3095.0,0.44853885]
[1644945667998,0.01060808,3095.3,3094.7,0.001]
[1644945668401,1.184136,3095.2,3094.6,0.2346088]
[1644945668999,0.00264911,3095.1,3094.6,0.2346088]
[1644945669200,0.00264911,3095.1,3094.9,1.09302319]
[1644945669400,0.00264911,3095.1,3095.0,0.001]
[1644945670002,1.18426597,3095.4,3095.0,0.001]
[1644945670204,0.00264905,3095.2,3095.0,0.001]
[1644945671063,1.18498532,3095.6,3095.0,0.001]
[1644945671267,1.18498532,3095.5,3095.0,0.001]
[1644945671468,0.00264903,3095.3,3095.0,0.001]
[1644945672260,1.1849985,3095.6,3095.0,0.001]
[1644945672460,1.1849985,3095.5,3095.0,0.8085963]
[1644945672661,0.00264947,3095.3,3095.0,0.8085963]
[1644945672862,0.00264947,3095.3,3094.9,0.47088984]
[1644945673460,1.18488057,3095.7,3094.9,0.47088984]
[1644945673661,1.18488057,3095.6,3094.9,0.47088984]
[1644945673865,0.00264949,3095.3,3094.9,0.47088984]
[1644945674710,1.15868678,3095.6,3094.9,0.47088984]
[1644945674909,0.00264949,3095.3,3094.9,0.47088984]
[1644945675109,0.00264949,3095.3,3094.9,2.08611444]
[1644945675709,0.00264949,3095.3,3094.9,2.29807725]
[1644945675909,1.15875147,3095.6,3094.9,2.08611444]
[1644945676110,0.00264942,3095.3,3094.9,1.27851444]
[1644945676311,0.00264942,3095.3,3094.7,1.81018239]
[1644945676709,0.00264942,3095.3,3094.8,0.8076395]
[1644945677111,1.15849745,3095.6,3094.8,0.8076395]
[1644945677310,0.00264944,3095.2,3094.8,0.8076395]
[1644945677510,0.00264944,3095.2,3094.8,1.54762569]
[1644945677712,0.01059619,3095.7,3094.9,10.25]
[1644945677913,0.01059619,3095.7,3094.9,8.965]
[1644945678114,0.01059619,3095.7,3095.0,1.54626208]
[1644945678313,0.01059619,3095.7,3095.1,0.47492485]
[1644945678554,8.82699996,3096.9,3095.1,0.47492485]
[1644945678757,1.4463,3096.9,3095.3,20.8249]
[1644945678955,1.4463,3096.9,3095.4,4.14108949]
[1644945679261,1.1573,3097.4,3095.7,1.6146095]
[1644945679262,1.75839343,3097.4,3095.7,1.6146095]
[1644945679454,1.75839343,3097.4,3095.8,0.001]
[1644945679455,1.1573,3097.4,3095.8,0.001]
[1644945679655,1.1573,3097.4,3095.8,0.48595819]
[1644945679855,1.1573,3097.4,3096.5,0.80724]
[1644945680156,1.2103,3097.6,3096.5,0.80724]
[1644945680356,0.60109343,3097.7,3096.5,0.80724]
[1644945680557,0.60109343,3097.7,3096.3,4.7414]
[1644945680756,0.90109343,3097.7,3096.4,0.98394916]
[1644945680958,0.00265747,3097.3,3096.5,1.6143543]
[1644945681159,0.00265747,3097.3,3096.6,0.001]
[1644945681160,1.45529195,3097.3,3096.6,0.001]
[1644945681359,1.45529195,3097.3,3096.4,0.001]
[1644945681658,1.4111509,3097.3,3096.4,0.001]
[1644945681866,0.80736,3097.2,3096.4,0.001]
[1644945682312,0.00252551,3097.0,3096.4,0.001]
[1644945682714,1.02261354,3096.8,3096.4,0.001]
[1644945682911,0.00252551,3097.0,3096.0,0.001]
[1644945682912,0.89984194,3096.2,3096.0,0.001]
[1644945683212,0.60109343,3096.9,3095.9,0.001]
[1644945683416,0.00262678,3096.8,3095.4,0.001]
[1644945683811,0.465,3096.7,3095.4,0.001]
[1644945684011,2.08001,3096.7,3095.5,0.8075186]
[1644945684211,0.85338941,3096.6,3095.5,0.8075186]
[1644945684612,0.00262702,3096.3,3095.5,0.80162329]
[1644945684812,0.00262702,3096.3,3095.4,0.001]
[1644945685012,0.00262702,3096.3,3095.5,0.8075214]
[1644945685610,0.80755,3096.4,3095.5,0.8075214]
[1644945685813,0.00262711,3096.1,3095.5,1.6150514]
[1644945686057,0.00262711,3096.1,3095.6,0.001]
[1644945686354,0.00262711,3096.1,3095.7,0.8074308]
[1644945686555,0.00262711,3096.1,3095.7,1.6158408]
[1644945686754,0.60109343,3097.0,3095.8,0.001]
[1644945686960,0.465,3097.1,3096.0,0.80741]
[1644945686961,1.06609343,3097.1,3096.0,0.80741]
[1644945687155,0.00243034,3096.1,3096.0,0.80741]
[1644945687554,0.00243034,3096.1,3095.9,0.8073929]
[1644945687956,1.40852343,3097.1,3095.9,0.8083929]
[1644945688258,0.60109343,3097.1,3096.0,1.1074]
[1644945688457,1.4125767,3097.2,3096.1,0.001]
[1644945688659,1.4125767,3097.2,3096.2,0.8073669]
[1644945688862,0.81148327,3097.2,3096.2,0.8083669]
[1644945689056,0.60109343,3097.1,3096.2,0.8083669]
[1644945689460,0.00107107,3096.9,3096.2,0.80833]
[1644945689703,0.00107107,3096.9,3096.3,0.8073457]
[1644945689907,0.00107107,3096.9,3096.3,0.301]
[1644945690107,0.00107107,3096.9,3096.3,0.001]
[1644945690303,0.00414327,3097.3,3096.4,0.64998179]
[1644945690504,0.00414327,3097.3,3096.6,0.80706]
[1644945690707,0.00289839,3096.8,3096.6,2.0801442]
[1644945690906,0.00289839,3096.8,3096.7,0.001]
[1644945691108,0.85504763,3097.8,3096.7,0.001]
[1644945691310,0.00422196,3097.6,3096.7,1.001]
[1644945691506,0.00422196,3097.7,3097.1,0.80708]
[1644945691706,0.00422196,3097.9,3097.3,0.8069734]
[1644945691907,0.00422196,3098.0,3097.3,1.61391]
[1644945692111,0.00422196,3098.0,3097.4,0.001]
[1644945692308,0.60504763,3098.2,3097.4,0.001]
[1644945692507,0.00422196,3098.1,3097.4,0.001]
[1644945692707,0.00422196,3098.1,3097.6,0.8069]
[1644945693009,0.00422196,3098.1,3097.6,1.61479]
[1644945693206,0.60504763,3098.3,3097.7,0.001]
[1644945693453,0.00422196,3098.2,3097.7,0.001]
[1644945693854,0.00422196,3098.2,3097.7,1.6147501]
[1644945693855,0.60926959,3098.2,3097.7,1.6147501]
[1644945694056,0.45789345,3098.5,3097.4,1.0]
[1644945694057,0.60504763,3098.3,3097.8,0.001]
[1644945694254,0.00549759,3098.1,3097.5,0.001]
[1644945694455,0.56054522,3098.3,3097.5,0.001]
[1644945694660,0.45789345,3098.5,3097.5,0.001]
[1644945694661,1.15132655,3098.4,3097.5,0.001]
[1644945694856,0.00126345,3097.4,3097.3,0.001]
[1644945695056,0.00126345,3097.4,3096.7,1.6142942]
[1644945695057,0.00126345,3097.4,3096.8,0.001]
[1644945696156,0.00126345,3097.4,3096.9,1.6142667]
[1644945696357,0.00126345,3097.4,3097.0,0.001]
[1644945696756,0.00126345,3097.4,3096.8,0.80718]
[1644945696757,0.00126345,3097.4,3096.8,0.80818]
[1644945696959,0.00126345,3097.4,3096.8,1.61531]
[1644945697210,0.00126345,3097.4,3097.0,0.8070992]
[1644945698207,0.00126345,3097.4,3097.0,0.8080992]
[1644945698607,0.00126345,3097.4,3097.0,0.001]
[1644945698810,0.00126345,3097.4,3096.6,0.001]
[1644945699207,0.00126345,3097.4,3096.9,1.6140918]
[1644945699408,0.00126345,3097.4,3097.0,0.001]
[1644945700410,0.00126345,3097.4,3097.0,3.2291559]